[Event "Titled Tuesday Blitz January 10 Late 2023"]
[White "Aldokhin, Ivan"]
[Black "Roman, Rodrigo"]
[WhiteFideId "24115720"]
[BlackFideId "3701220"]
[WhiteElo "2413"]
[BlackElo "2058"]
[Result "0-1"]
[Round "02"]
[TimeControl "180+2"]
[Date "2023.01.10"]
[WhiteClock "0:00:19"]
[BlackClock "0:00:09"]

1. e4 {[%clk 0:00:00]}  c5 {[%clk 0:00:00]} 2. Nf3 {[%clk 0:02:59]}  Nc6 {[%clk 0:02:57]} 3. d4 {[%clk 0:02:59]}  cxd4 {[%clk 0:02:58]} 4. Nxd4 {[%clk 0:03:00]}  e5 {[%clk 0:02:59]} 5. Nb5 {[%clk 0:03:01]}  d6 {[%clk 0:02:59]} 6. c4 {[%clk 0:03:01]}  Be7 {[%clk 0:02:56]} 7. N1c3 {[%clk 0:02:58]}  a6 {[%clk 0:02:54]} 8. Na3 {[%clk 0:02:58]}  f5 {[%clk 0:02:54]} 9. exf5 {[%clk 0:02:58]}  Bxf5 {[%clk 0:02:55]} 10. Bd3 {[%clk 0:02:57]}  Be6 {[%clk 0:02:52]} 11. Nc2 {[%clk 0:02:56]}  Nf6 {[%clk 0:02:52]} 12. Bg5 {[%clk 0:02:50]}  O-O {[%clk 0:02:48]} 13. O-O {[%clk 0:02:50]}  Qd7 {[%clk 0:02:46]} 14. Bxf6 {[%clk 0:02:50]}  gxf6 {[%clk 0:02:44]} 15. Nd5 {[%clk 0:02:40]}  Rae8 {[%clk 0:02:43]} 16. f4 {[%clk 0:02:36]}  f5 {[%clk 0:02:36]} 17. Qh5 {[%clk 0:02:27]}  Bd8 {[%clk 0:02:34]} 18. Rad1 {[%clk 0:02:26]}  Qf7 {[%clk 0:02:31]} 19. Qxf7+ {[%clk 0:02:11]}  Rxf7 {[%clk 0:02:28]} 20. g3 {[%clk 0:01:57]}  h5 {[%clk 0:02:27]} 21. Kf2 {[%clk 0:01:51]}  h4 {[%clk 0:02:14]} 22. Be2 {[%clk 0:01:45]}  Rh7 {[%clk 0:02:13]} 23. Nde3 {[%clk 0:01:37]}  hxg3+ {[%clk 0:02:11]} 24. hxg3 {[%clk 0:01:23]}  Rh2+ {[%clk 0:02:02]} 25. Ng2 {[%clk 0:01:22]}  Bb6+ {[%clk 0:01:54]} 26. Ne3 {[%clk 0:00:53]}  Bxe3+ {[%clk 0:01:45]} 27. Kxe3 {[%clk 0:00:52]}  Rxg2 {[%clk 0:01:42]} 28. Rxd6 {[%clk 0:00:52]}  Rxe2+ {[%clk 0:01:41]} 29. Kxe2 {[%clk 0:00:52]}  Bxc4+ {[%clk 0:01:39]} 30. Kf2 {[%clk 0:00:49]}  Bxf1 {[%clk 0:01:40]} 31. Kxf1 {[%clk 0:00:50]}  exf4 {[%clk 0:01:36]} 32. gxf4 {[%clk 0:00:51]}  Re4 {[%clk 0:01:36]} 33. Rd7 {[%clk 0:00:50]}  Rxf4+ {[%clk 0:01:37]} 34. Ke2 {[%clk 0:00:47]}  Re4+ {[%clk 0:01:32]} 35. Kf2 {[%clk 0:00:48]}  Re7 {[%clk 0:01:27]} 36. Rd5 {[%clk 0:00:42]}  Rf7 {[%clk 0:01:28]} 37. Kf3 {[%clk 0:00:40]}  Kg7 {[%clk 0:01:23]} 38. Kf4 {[%clk 0:00:38]}  Ne7 {[%clk 0:01:18]} 39. Rd6 {[%clk 0:00:39]}  Ng6+ {[%clk 0:01:09]} 40. Kg5 {[%clk 0:00:36]}  Nf8 {[%clk 0:00:51]} 41. Kf4 {[%clk 0:00:36]}  Rf6 {[%clk 0:00:51]} 42. Rd5 {[%clk 0:00:33]}  Ng6+ {[%clk 0:00:49]} 43. Kg5 {[%clk 0:00:32]}  f4 {[%clk 0:00:47]} 44. Rd7+ {[%clk 0:00:32]}  Rf7 {[%clk 0:00:47]} 45. Rd6 {[%clk 0:00:32]}  Nf8 {[%clk 0:00:47]} 46. Rd2 {[%clk 0:00:33]}  f3 {[%clk 0:00:34]} 47. Rf2 {[%clk 0:00:27]}  Ne6+ {[%clk 0:00:33]} 48. Kg4 {[%clk 0:00:27]}  Nd4 {[%clk 0:00:32]} 49. Kg3 {[%clk 0:00:27]}  Kg6 {[%clk 0:00:32]} 50. Rd2 {[%clk 0:00:28]}  f2 {[%clk 0:00:28]} 51. Rxf2 {[%clk 0:00:28]}  Rxf2 {[%clk 0:00:24]} 52. Kxf2 {[%clk 0:00:28]}  Kf5 {[%clk 0:00:24]} 53. Ke3 {[%clk 0:00:28]}  Ke5 {[%clk 0:00:24]} 54. Kd3 {[%clk 0:00:29]}  b5 {[%clk 0:00:24]} 55. Kc3 {[%clk 0:00:30]}  Nc6 {[%clk 0:00:24]} 56. a3 {[%clk 0:00:28]}  Kd5 {[%clk 0:00:24]} 57. b3 {[%clk 0:00:25]}  a5 {[%clk 0:00:24]} 58. Kd3 {[%clk 0:00:24]}  Nd4 {[%clk 0:00:22]} 59. Kc3 {[%clk 0:00:22]}  Ne6 {[%clk 0:00:21]} 60. Kd3 {[%clk 0:00:22]}  b4 {[%clk 0:00:19]} 61. axb4 {[%clk 0:00:20]}  axb4 {[%clk 0:00:18]} 62. Kd2 {[%clk 0:00:16]}  Kd4 {[%clk 0:00:19]} 63. Kc2 {[%clk 0:00:16]}  Nc5 {[%clk 0:00:19]} 64. Kb2 {[%clk 0:00:17]}  Kd3 {[%clk 0:00:18]} 65. Ka2 {[%clk 0:00:16]}  Kc2 {[%clk 0:00:19]} 66. Ka1 {[%clk 0:00:17]}  Nxb3+ {[%clk 0:00:15]} 67. Ka2 {[%clk 0:00:17]}  Nc5 {[%clk 0:00:15]} 68. Ka1 {[%clk 0:00:18]}  Kb3 {[%clk 0:00:13]} 69. Kb1 {[%clk 0:00:19]}  Ka3 {[%clk 0:00:12]} 70. Ka1 {[%clk 0:00:18]}  b3 {[%clk 0:00:12]} 71. Kb1 {[%clk 0:00:17]}  b2 {[%clk 0:00:12]} 72. Kc2 {[%clk 0:00:18]}  Ka2 {[%clk 0:00:13]} 73. Kc3 {[%clk 0:00:17]}  b1=Q {[%clk 0:00:12]} 74. Kc4 {[%clk 0:00:18]}  Nb3 {[%clk 0:00:11]} 75. Kc3 {[%clk 0:00:18]}  Qc1+ {[%clk 0:00:09]} 76. Kb4 {[%clk 0:00:18]}  Qc5+ {[%clk 0:00:09]} 77. Ka4 {[%clk 0:00:19]}  Qa5# {[%clk 0:00:09]} 0-1


[Site "https://www.chess.com"]

[Event "Titled Tuesday Blitz January 10 Late 2023"]
[White "Mladek, Richard"]
[Black "Abdyzhaparov, Aidar"]
[WhiteFideId "386588"]
[BlackFideId "13800361"]
[WhiteElo "2436"]
[BlackElo "1978"]
[Result "1-0"]
[Round "02"]
[TimeControl "180+2"]
[Date "2023.01.10"]
[WhiteClock "0:00:16"]
[BlackClock "0:00:09"]

1. d4 {[%clk 0:00:00]}  d6 {[%clk 0:00:00]} 2. e4 {[%clk 0:03:00]}  Nf6 {[%clk 0:02:56]} 3. Nc3 {[%clk 0:03:00]}  e5 {[%clk 0:02:55]} 4. Nf3 {[%clk 0:03:00]}  Nbd7 {[%clk 0:02:56]} 5. Rg1 {[%clk 0:03:00]}  g6 {[%clk 0:02:56]} 6. g4 {[%clk 0:02:59]}  Bg7 {[%clk 0:02:53]} 7. g5 {[%clk 0:03:00]}  Nh5 {[%clk 0:02:54]} 8. Be3 {[%clk 0:03:00]}  O-O {[%clk 0:02:54]} 9. Qd2 {[%clk 0:03:01]}  c6 {[%clk 0:02:54]} 10. O-O-O {[%clk 0:02:59]}  b5 {[%clk 0:02:54]} 11. dxe5 {[%clk 0:02:58]}  dxe5 {[%clk 0:02:54]} 12. Qd6 {[%clk 0:02:53]}  b4 {[%clk 0:02:55]} 13. Na4 {[%clk 0:02:49]}  Qa5 {[%clk 0:02:42]} 14. b3 {[%clk 0:02:43]}  Nb6 {[%clk 0:02:40]} 15. Qc7 {[%clk 0:02:39]}  Be6 {[%clk 0:02:24]} 16. Kb1 {[%clk 0:02:29]}  Nf4 {[%clk 0:02:13]} 17. Bxb6 {[%clk 0:02:21]}  axb6 {[%clk 0:01:52]} 18. Qxb6 {[%clk 0:02:03]}  Rfb8 {[%clk 0:01:51]} 19. Qxa5 {[%clk 0:02:04]}  Rxa5 {[%clk 0:01:39]} 20. Nd2 {[%clk 0:01:59]}  Rd8 {[%clk 0:01:40]} 21. Bc4 {[%clk 0:01:54]}  Bf8 {[%clk 0:01:31]} 22. h4 {[%clk 0:01:46]}  Raa8 {[%clk 0:01:24]} 23. Bxe6 {[%clk 0:01:42]}  Nxe6 {[%clk 0:01:04]} 24. Nc4 {[%clk 0:01:41]}  Nd4 {[%clk 0:01:04]} 25. Nxe5 {[%clk 0:01:42]}  Bg7 {[%clk 0:01:03]} 26. f4 {[%clk 0:01:34]}  Bxe5 {[%clk 0:01:01]} 27. fxe5 {[%clk 0:01:31]}  Nf3 {[%clk 0:00:57]} 28. Rh1 {[%clk 0:01:31]}  Nxe5 {[%clk 0:00:58]} 29. Kc1 {[%clk 0:01:21]}  Ng4 {[%clk 0:00:58]} 30. Rxd8+ {[%clk 0:01:14]}  Rxd8 {[%clk 0:00:56]} 31. Rd1 {[%clk 0:01:10]}  Re8 {[%clk 0:00:57]} 32. Rd4 {[%clk 0:01:10]}  Ne5 {[%clk 0:00:57]} 33. Rxb4 {[%clk 0:01:06]}  c5 {[%clk 0:00:51]} 34. Nxc5 {[%clk 0:01:03]}  Rc8 {[%clk 0:00:47]} 35. Rb5 {[%clk 0:01:00]}  f6 {[%clk 0:00:47]} 36. gxf6 {[%clk 0:01:01]}  h6 {[%clk 0:00:44]} 37. Kd2 {[%clk 0:00:58]}  g5 {[%clk 0:00:44]} 38. hxg5 {[%clk 0:00:51]}  Nf3+ {[%clk 0:00:42]} 39. Ke3 {[%clk 0:00:52]}  Nxg5 {[%clk 0:00:42]} 40. a4 {[%clk 0:00:50]}  h5 {[%clk 0:00:43]} 41. Nd3 {[%clk 0:00:47]}  Ne6 {[%clk 0:00:39]} 42. Re5 {[%clk 0:00:42]}  Kf7 {[%clk 0:00:31]} 43. Rxh5 {[%clk 0:00:39]}  Rxc2 {[%clk 0:00:27]} 44. e5 {[%clk 0:00:38]}  Rc3 {[%clk 0:00:25]} 45. Rh7+ {[%clk 0:00:36]}  Kg6 {[%clk 0:00:23]} 46. Rd7 {[%clk 0:00:35]}  Nc5 {[%clk 0:00:21]} 47. Rd5 {[%clk 0:00:32]}  Nxb3 {[%clk 0:00:19]} 48. a5 {[%clk 0:00:23]}  Kf7 {[%clk 0:00:20]} 49. a6 {[%clk 0:00:20]}  Nc1 {[%clk 0:00:12]} 50. Kd2 {[%clk 0:00:19]}  Rc7 {[%clk 0:00:09]} 51. Nxc1 {[%clk 0:00:16]} 1-0


[Site "https://www.chess.com"]

[Event "Titled Tuesday Blitz January 10 Late 2023"]
[White "Alexikov, Alexander"]
[Black "Sebag, Marie"]
[WhiteFideId "14103958"]
[BlackFideId "617822"]
[WhiteElo "2209"]
[BlackElo "2430"]
[Result "0-1"]
[Round "02"]
[TimeControl "180+2"]
[Date "2023.01.10"]
[WhiteClock "0:00:08"]
[BlackClock "0:01:27"]

1. e4 {[%clk 0:00:00]}  c5 {[%clk 0:00:00]} 2. Nf3 {[%clk 0:02:40]}  Nc6 {[%clk 0:02:57]} 3. Bb5 {[%clk 0:02:40]}  g6 {[%clk 0:02:57]} 4. O-O {[%clk 0:02:40]}  Bg7 {[%clk 0:02:55]} 5. Re1 {[%clk 0:02:39]}  e5 {[%clk 0:02:54]} 6. c3 {[%clk 0:02:39]}  Nge7 {[%clk 0:02:54]} 7. d3 {[%clk 0:02:36]}  O-O {[%clk 0:02:52]} 8. Bg5 {[%clk 0:02:33]}  h6 {[%clk 0:02:51]} 9. Bh4 {[%clk 0:02:30]}  d6 {[%clk 0:02:49]} 10. Nbd2 {[%clk 0:02:26]}  g5 {[%clk 0:02:49]} 11. Bg3 {[%clk 0:02:22]}  f5 {[%clk 0:02:48]} 12. exf5 {[%clk 0:02:21]}  Nxf5 {[%clk 0:02:48]} 13. Bc4+ {[%clk 0:02:10]}  d5 {[%clk 0:02:47]} 14. Bb3 {[%clk 0:02:07]}  Nxg3 {[%clk 0:02:46]} 15. hxg3 {[%clk 0:02:07]}  Kh8 {[%clk 0:02:18]} 16. Ba4 {[%clk 0:02:06]}  Qd6 {[%clk 0:02:13]} 17. Qe2 {[%clk 0:01:46]}  Bg4 {[%clk 0:02:09]} 18. Bxc6 {[%clk 0:01:43]}  bxc6 {[%clk 0:02:07]} 19. Qe3 {[%clk 0:01:22]}  Rae8 {[%clk 0:02:04]} 20. Nh2 {[%clk 0:00:48]}  Bd7 {[%clk 0:02:03]} 21. f3 {[%clk 0:00:38]}  e4 {[%clk 0:02:00]} 22. fxe4 {[%clk 0:00:34]}  d4 {[%clk 0:01:50]} 23. Nc4 {[%clk 0:00:32]}  Qc7 {[%clk 0:01:49]} 24. Qd2 {[%clk 0:00:27]}  Qxg3 {[%clk 0:01:45]} 25. Rf1 {[%clk 0:00:20]}  Be6 {[%clk 0:01:44]} 26. Na5 {[%clk 0:00:19]}  Be5 {[%clk 0:01:34]} 27. Nf3 {[%clk 0:00:11]}  Bf4 {[%clk 0:01:27]} 28. Qe1 {[%clk 0:00:09]}  Be3+ {[%clk 0:01:27]} 29. Kh1 {[%clk 0:00:08]}  Qg4 {[%clk 0:01:27]} 0-1


[Site "https://www.chess.com"]

[Event "Titled Tuesday Blitz January 10 Late 2023"]
[White "Vasques, Antonio Pedro Freixial"]
[Black "Aggelis, Nikolaos"]
[WhiteFideId "1908332"]
[BlackFideId "4213220"]
[WhiteElo "2214"]
[BlackElo "2270"]
[Result "0-1"]
[Round "02"]
[TimeControl "180+2"]
[Date "2023.01.10"]
[WhiteClock "0:00:18"]
[BlackClock "0:00:37"]

1. e4 {[%clk 0:00:00]}  c6 {[%clk 0:00:00]} 2. Nc3 {[%clk 0:02:57]}  d5 {[%clk 0:02:56]} 3. Nf3 {[%clk 0:02:54]}  dxe4 {[%clk 0:02:55]} 4. Nxe4 {[%clk 0:02:53]}  Bg4 {[%clk 0:02:55]} 5. h3 {[%clk 0:02:53]}  Bxf3 {[%clk 0:02:55]} 6. Qxf3 {[%clk 0:02:52]}  e6 {[%clk 0:02:54]} 7. c3 {[%clk 0:02:53]}  Nd7 {[%clk 0:02:55]} 8. d4 {[%clk 0:02:47]}  Ngf6 {[%clk 0:02:54]} 9. Bd3 {[%clk 0:02:47]}  Be7 {[%clk 0:02:54]} 10. O-O {[%clk 0:02:45]}  Nxe4 {[%clk 0:02:55]} 11. Bxe4 {[%clk 0:02:45]}  O-O {[%clk 0:02:55]} 12. Bf4 {[%clk 0:02:44]}  Bf6 {[%clk 0:02:53]} 13. Rfd1 {[%clk 0:02:43]}  Qe7 {[%clk 0:02:51]} 14. Bg3 {[%clk 0:02:37]}  Rfe8 {[%clk 0:02:49]} 15. b4 {[%clk 0:02:34]}  e5 {[%clk 0:02:46]} 16. d5 {[%clk 0:02:30]}  cxd5 {[%clk 0:02:43]} 17. Bxd5 {[%clk 0:02:30]}  Nb6 {[%clk 0:01:58]} 18. Be4 {[%clk 0:02:30]}  g6 {[%clk 0:01:58]} 19. Rd3 {[%clk 0:02:19]}  Bg7 {[%clk 0:01:46]} 20. Rad1 {[%clk 0:02:03]}  f5 {[%clk 0:01:46]} 21. Bd5+ {[%clk 0:02:02]}  Kh8 {[%clk 0:01:42]} 22. Qe2 {[%clk 0:02:00]}  e4 {[%clk 0:01:42]} 23. R3d2 {[%clk 0:01:55]}  Bxc3 {[%clk 0:01:41]} 24. Rc2 {[%clk 0:01:52]}  Be5 {[%clk 0:01:27]} 25. Bxe5+ {[%clk 0:01:53]}  Qxe5 {[%clk 0:01:15]} 26. Bxb7 {[%clk 0:01:47]}  Rad8 {[%clk 0:01:16]} 27. Rcd2 {[%clk 0:01:48]}  Rxd2 {[%clk 0:01:15]} 28. Qxd2 {[%clk 0:01:40]}  e3 {[%clk 0:01:12]} 29. Qxe3 {[%clk 0:01:41]}  Qxe3 {[%clk 0:01:09]} 30. fxe3 {[%clk 0:01:35]}  Rxe3 {[%clk 0:01:10]} 31. Bd5 {[%clk 0:01:36]}  Nxd5 {[%clk 0:01:11]} 32. Rxd5 {[%clk 0:01:25]}  Ra3 {[%clk 0:01:07]} 33. Rd2 {[%clk 0:01:26]}  Kg7 {[%clk 0:01:07]} 34. Kf2 {[%clk 0:01:22]}  Kf6 {[%clk 0:01:07]} 35. Re2 {[%clk 0:01:21]}  g5 {[%clk 0:01:07]} 36. g3 {[%clk 0:01:14]}  h5 {[%clk 0:01:06]} 37. Kg2 {[%clk 0:01:14]}  f4 {[%clk 0:01:03]} 38. gxf4 {[%clk 0:01:12]}  gxf4 {[%clk 0:01:02]} 39. Rb2 {[%clk 0:01:10]}  Ke5 {[%clk 0:01:00]} 40. b5 {[%clk 0:01:09]}  Ke4 {[%clk 0:00:56]} 41. Rb4+ {[%clk 0:01:09]}  Ke3 {[%clk 0:00:48]} 42. Rb2 {[%clk 0:01:06]}  f3+ {[%clk 0:00:48]} 43. Kg3 {[%clk 0:00:42]}  h4+ {[%clk 0:00:47]} 44. Kh2 {[%clk 0:00:40]}  Rd3 {[%clk 0:00:47]} 45. a4 {[%clk 0:00:35]}  Rd2+ {[%clk 0:00:44]} 46. Rxd2 {[%clk 0:00:18]}  Kxd2 {[%clk 0:00:38]} 47. a5 {[%clk 0:00:18]}  f2 {[%clk 0:00:39]} 48. b6 {[%clk 0:00:18]}  axb6 {[%clk 0:00:38]} 49. axb6 {[%clk 0:00:18]}  f1=Q {[%clk 0:00:37]} 0-1


[Site "https://www.chess.com"]

[Event "Titled Tuesday Blitz January 10 Late 2023"]
[White "Koutlas, Nikolaos"]
[Black "Kovacs, Klara"]
[WhiteFideId "25827138"]
[BlackFideId "733210"]
[WhiteElo "2341"]
[BlackElo "2121"]
[Result "1-0"]
[Round "02"]
[TimeControl "180+2"]
[Date "2023.01.10"]
[WhiteClock "0:00:23"]
[BlackClock "0:01:42"]

1. Nf3 {[%clk 0:00:00]}  e6 {[%clk 0:00:00]} 2. c4 {[%clk 0:01:53]}  d5 {[%clk 0:03:00]} 3. b3 {[%clk 0:01:50]}  Nf6 {[%clk 0:03:00]} 4. Bb2 {[%clk 0:01:51]}  Be7 {[%clk 0:02:59]} 5. g3 {[%clk 0:01:52]}  O-O {[%clk 0:02:58]} 6. Bg2 {[%clk 0:01:53]}  c5 {[%clk 0:02:58]} 7. e3 {[%clk 0:01:54]}  d4 {[%clk 0:02:57]} 8. exd4 {[%clk 0:01:53]}  cxd4 {[%clk 0:02:58]} 9. Nxd4 {[%clk 0:01:51]}  e5 {[%clk 0:02:59]} 10. Ne2 {[%clk 0:01:51]}  e4 {[%clk 0:02:59]} 11. Nbc3 {[%clk 0:01:48]}  Bf5 {[%clk 0:02:57]} 12. O-O {[%clk 0:01:47]}  Nc6 {[%clk 0:02:56]} 13. a3 {[%clk 0:01:44]}  a5 {[%clk 0:02:56]} 14. Re1 {[%clk 0:01:40]}  Bc5 {[%clk 0:02:56]} 15. h3 {[%clk 0:01:37]}  h5 {[%clk 0:02:56]} 16. Nf4 {[%clk 0:01:36]}  g6 {[%clk 0:02:54]} 17. Nxe4 {[%clk 0:01:32]}  Nxe4 {[%clk 0:02:50]} 18. Bxe4 {[%clk 0:01:24]}  Bxe4 {[%clk 0:02:44]} 19. Rxe4 {[%clk 0:01:24]}  Qg5 {[%clk 0:02:43]} 20. d4 {[%clk 0:01:23]}  Bd6 {[%clk 0:02:40]} 21. h4 {[%clk 0:01:20]}  Qf6 {[%clk 0:02:38]} 22. Nd5 {[%clk 0:01:18]}  Qf5 {[%clk 0:02:34]} 23. Qe2 {[%clk 0:01:14]}  Rad8 {[%clk 0:02:33]} 24. Re1 {[%clk 0:01:11]}  b5 {[%clk 0:02:29]} 25. Nf4 {[%clk 0:01:08]}  bxc4 {[%clk 0:02:23]} 26. bxc4 {[%clk 0:00:54]}  Bb8 {[%clk 0:02:13]} 27. d5 {[%clk 0:00:54]}  Na7 {[%clk 0:02:05]} 28. Nd3 {[%clk 0:00:54]}  Nc8 {[%clk 0:02:02]} 29. Ne5 {[%clk 0:00:50]}  Nd6 {[%clk 0:02:00]} 30. Rf4 {[%clk 0:00:37]}  Qc8 {[%clk 0:01:59]} 31. Nc6 {[%clk 0:00:37]}  Kh7 {[%clk 0:01:56]} 32. Ne7 {[%clk 0:00:34]}  Qd7 {[%clk 0:01:48]} 33. c5 {[%clk 0:00:26]}  Nf5 {[%clk 0:01:44]} 34. Rxf5 {[%clk 0:00:27]}  gxf5 {[%clk 0:01:42]} 35. Qxh5# {[%clk 0:00:23]} 1-0


[Site "https://www.chess.com"]

[Event "Titled Tuesday Blitz January 10 Late 2023"]
[White "Fiorito, Francisco"]
[Black "Ankerst, Mihael"]
[WhiteFideId "180165"]
[BlackFideId "14602369"]
[WhiteElo "2305"]
[BlackElo "2370"]
[Result "1-0"]
[Round "02"]
[TimeControl "180+2"]
[Date "2023.01.10"]
[WhiteClock "0:00:08"]
[BlackClock "0:01:03"]

1. Nf3 {[%clk 0:00:00]}  Nf6 {[%clk 0:00:00]} 2. g3 {[%clk 0:03:00]}  g6 {[%clk 0:02:56]} 3. Bg2 {[%clk 0:03:00]}  Bg7 {[%clk 0:02:56]} 4. O-O {[%clk 0:03:00]}  O-O {[%clk 0:02:57]} 5. c4 {[%clk 0:03:01]}  d6 {[%clk 0:02:57]} 6. d4 {[%clk 0:03:01]}  Nbd7 {[%clk 0:02:58]} 7. Nc3 {[%clk 0:03:01]}  e5 {[%clk 0:02:57]} 8. e4 {[%clk 0:03:01]}  c6 {[%clk 0:02:57]} 9. Qc2 {[%clk 0:03:02]}  exd4 {[%clk 0:02:57]} 10. Nxd4 {[%clk 0:03:02]}  Re8 {[%clk 0:02:57]} 11. Rd1 {[%clk 0:03:03]}  Qb6 {[%clk 0:02:56]} 12. h3 {[%clk 0:03:03]}  a5 {[%clk 0:02:50]} 13. Be3 {[%clk 0:02:41]}  Nc5 {[%clk 0:02:47]} 14. f4 {[%clk 0:02:40]}  Qb4 {[%clk 0:02:42]} 15. b3 {[%clk 0:02:07]}  Bf5 {[%clk 0:02:41]} 16. Nxf5 {[%clk 0:02:02]}  gxf5 {[%clk 0:02:40]} 17. Rab1 {[%clk 0:02:00]}  Nfxe4 {[%clk 0:02:40]} 18. Nxe4 {[%clk 0:01:19]}  Nxe4 {[%clk 0:02:30]} 19. Kh2 {[%clk 0:01:17]}  Re6 {[%clk 0:02:29]} 20. Re1 {[%clk 0:00:59]}  Rae8 {[%clk 0:02:25]} 21. g4 {[%clk 0:00:54]}  Qc3 {[%clk 0:02:25]} 22. Qd1 {[%clk 0:00:47]}  Qf6 {[%clk 0:02:23]} 23. g5 {[%clk 0:00:17]}  Qg6 {[%clk 0:02:23]} 24. Qf3 {[%clk 0:00:15]}  a4 {[%clk 0:02:23]} 25. h4 {[%clk 0:00:11]}  h5 {[%clk 0:02:09]} 26. Rbd1 {[%clk 0:00:10]}  a3 {[%clk 0:02:05]} 27. Bg1 {[%clk 0:00:07]}  Nc3 {[%clk 0:02:04]} 28. Rxe6 {[%clk 0:00:05]}  Qxe6 {[%clk 0:02:02]} 29. Rd2 {[%clk 0:00:04]}  Qe1 {[%clk 0:02:01]} 30. Rf2 {[%clk 0:00:04]}  Re2 {[%clk 0:02:00]} 31. Rxe2 {[%clk 0:00:03]}  Qxe2 {[%clk 0:01:57]} 32. Qxe2 {[%clk 0:00:02]}  Nxe2 {[%clk 0:01:57]} 33. Be3 {[%clk 0:00:02]}  Nc3 {[%clk 0:01:57]} 34. Bc1 {[%clk 0:00:02]}  Ne2 {[%clk 0:01:56]} 35. Bxa3 {[%clk 0:00:03]}  Nxf4 {[%clk 0:01:49]} 36. Bxd6 {[%clk 0:00:03]}  Nd3 {[%clk 0:01:49]} 37. Bf3 {[%clk 0:00:04]}  Nc1 {[%clk 0:01:45]} 38. Bxh5 {[%clk 0:00:04]}  Nxa2 {[%clk 0:01:46]} 39. g6 {[%clk 0:00:03]}  fxg6 {[%clk 0:01:45]} 40. Bxg6 {[%clk 0:00:03]}  Nc1 {[%clk 0:01:19]} 41. b4 {[%clk 0:00:03]}  Nd3 {[%clk 0:01:20]} 42. Kg2 {[%clk 0:00:03]}  Be5 {[%clk 0:01:15]} 43. Bxe5 {[%clk 0:00:02]}  Nxe5 {[%clk 0:01:15]} 44. Bxf5 {[%clk 0:00:02]}  Nxc4 {[%clk 0:01:14]} 45. Be6+ {[%clk 0:00:03]}  Kf8 {[%clk 0:01:15]} 46. Bxc4 {[%clk 0:00:04]}  Ke7 {[%clk 0:01:08]} 47. Kf3 {[%clk 0:00:04]}  Kd6 {[%clk 0:01:07]} 48. Ke4 {[%clk 0:00:05]}  b6 {[%clk 0:01:06]} 49. h5 {[%clk 0:00:05]}  c5 {[%clk 0:01:01]} 50. b5 {[%clk 0:00:05]}  Ke7 {[%clk 0:01:00]} 51. Kd5 {[%clk 0:00:05]}  Kd7 {[%clk 0:01:01]} 52. h6 {[%clk 0:00:05]}  Ke7 {[%clk 0:01:01]} 53. h7 {[%clk 0:00:05]}  Kf6 {[%clk 0:00:59]} 54. h8=Q+ {[%clk 0:00:06]}  Kg5 {[%clk 0:01:00]} 55. Bd3 {[%clk 0:00:06]}  Kf4 {[%clk 0:01:01]} 56. Qe5+ {[%clk 0:00:05]}  Kf3 {[%clk 0:01:01]} 57. Be2+ {[%clk 0:00:06]}  Kf2 {[%clk 0:01:01]} 58. Bh5 {[%clk 0:00:06]}  Kg1 {[%clk 0:01:02]} 59. Ke4 {[%clk 0:00:06]}  Kh1 {[%clk 0:01:03]} 60. Qb2 {[%clk 0:00:07]}  Kg1 {[%clk 0:01:03]} 61. Bf3 {[%clk 0:00:07]}  c4 {[%clk 0:01:03]} 62. Qg2# {[%clk 0:00:08]} 1-0


[Site "https://www.chess.com"]

[Event "Titled Tuesday Blitz January 10 Late 2023"]
[White "Kleiman, Jake"]
[Black "Cueto, Jonny"]
[WhiteFideId "2020041"]
[BlackFideId "3300145"]
[WhiteElo "2399"]
[BlackElo "2122"]
[Result "1-0"]
[Round "02"]
[TimeControl "180+2"]
[Date "2023.01.10"]
[WhiteClock "0:00:27"]
[BlackClock "0:00:02"]

1. e4 {[%clk 0:00:00]}  d6 {[%clk 0:00:00]} 2. d4 {[%clk 0:02:57]}  Nf6 {[%clk 0:02:58]} 3. Nc3 {[%clk 0:02:56]}  e5 {[%clk 0:02:55]} 4. Nf3 {[%clk 0:02:55]}  Nbd7 {[%clk 0:02:52]} 5. Bc4 {[%clk 0:02:54]}  Be7 {[%clk 0:02:49]} 6. O-O {[%clk 0:02:55]}  O-O {[%clk 0:02:47]} 7. Re1 {[%clk 0:02:56]}  c6 {[%clk 0:02:46]} 8. a4 {[%clk 0:02:56]}  b6 {[%clk 0:02:44]} 9. d5 {[%clk 0:02:56]}  Bb7 {[%clk 0:02:37]} 10. h3 {[%clk 0:02:56]}  Rc8 {[%clk 0:02:28]} 11. dxc6 {[%clk 0:02:54]}  Bxc6 {[%clk 0:02:16]} 12. b3 {[%clk 0:02:50]}  Nc5 {[%clk 0:02:14]} 13. Nd5 {[%clk 0:02:18]}  Ncxe4 {[%clk 0:02:06]} 14. Nxe7+ {[%clk 0:02:18]}  Qxe7 {[%clk 0:01:48]} 15. Ba3 {[%clk 0:02:12]}  Rfd8 {[%clk 0:01:47]} 16. Qc1 {[%clk 0:02:11]}  h6 {[%clk 0:01:44]} 17. Nh4 {[%clk 0:02:08]}  Qb7 {[%clk 0:01:39]} 18. Nf5 {[%clk 0:01:52]}  Nc5 {[%clk 0:01:31]} 19. Bf1 {[%clk 0:01:46]}  Be4 {[%clk 0:01:14]} 20. Ng3 {[%clk 0:01:30]}  Nxb3 {[%clk 0:00:58]} 21. Qe3 {[%clk 0:01:02]}  Nxa1 {[%clk 0:00:45]} 22. Rxa1 {[%clk 0:01:02]}  Bxc2 {[%clk 0:00:39]} 23. a5 {[%clk 0:01:02]}  bxa5 {[%clk 0:00:37]} 24. Bc1 {[%clk 0:01:03]}  Bg6 {[%clk 0:00:29]} 25. Rxa5 {[%clk 0:01:01]}  Nd5 {[%clk 0:00:25]} 26. Qa3 {[%clk 0:00:59]}  Qc7 {[%clk 0:00:22]} 27. Bd2 {[%clk 0:00:55]}  Nf4 {[%clk 0:00:15]} 28. Rxa7 {[%clk 0:00:49]}  Qc2 {[%clk 0:00:09]} 29. Be3 {[%clk 0:00:40]}  Rc3 {[%clk 0:00:09]} 30. Qa5 {[%clk 0:00:41]}  Rdc8 {[%clk 0:00:07]} 31. Qb4 {[%clk 0:00:41]}  d5 {[%clk 0:00:06]} 32. Bxf4 {[%clk 0:00:36]}  exf4 {[%clk 0:00:05]} 33. Qxf4 {[%clk 0:00:36]}  Qd1 {[%clk 0:00:05]} 34. Kh2 {[%clk 0:00:37]}  Rc1 {[%clk 0:00:02]} 35. Rd7 {[%clk 0:00:34]}  Qc2 {[%clk 0:00:02]} 36. Rxd5 {[%clk 0:00:31]}  Qc7 {[%clk 0:00:02]} 37. Rd6 {[%clk 0:00:27]} 1-0


[Site "https://www.chess.com"]